fUSD/lending_fUSD_20240412
["ID","MTS","AMOUNT","RATE_DAILY","PERIOD"]
[322287639,1712933971432,150.4,0.00019923,2]
[322287640,1712933971912,150.4,0.00019948,2]
[322287641,1712933972134,150.4,0.00019973,2]
[322287642,1712933979107,368.84,0.00019867,2]
[322287643,1712933984634,2000.0,0.0001986,2]
[322287645,1712934041909,23296.68,0.00019869,2]
[322287647,1712934057196,200.0,0.00019871,2]
[322287678,1712934172532,250.0,0.00019826,2]
[322287680,1712934196430,150.7,0.00019812,2]
[322287681,1712934210728,2510.27,0.00019812,2]
[322287682,1712934234232,155.7,0.00019966,2]
[322287683,1712934234457,155.7,0.0002014,2]
[322287684,1712934234699,155.7,0.00020313,2]
[322287685,1712934234971,155.7,0.00020486,2]
[322287689,1712934303203,223.48,0.00019799,2]
[322287695,1712934410792,538.33,0.00019793,2]
[322287696,1712934417714,200.0,0.00019793,2]
[322287697,1712934430005,232.88,0.00017871,2]
[322287698,1712934430213,232.88,0.00020135,2]
[322287704,1712934465821,188.0947876,0.00020467,2]
[322287705,1712934471099,1033.52071841,0.00019799,2]
[322287706,1712934473289,344.71385659,0.00020135,2]
[322287708,1712934485342,255.57050584,0.00020135,2]
[322287732,1712934618172,1710.89941664,0.00020855,5]
[322287760,1712934632342,-167.07309663,0.00020512,2]
[322287761,1712934632354,-156.98059001,0.00020512,2]
[322287762,1712934632365,-525.85134183,0.00020513,2]
[322287763,1712934632376,-1126.48717349,0.00020514,2]
[322287764,1712934632387,-214.23079804,0.00020517,2]
[322287765,1712934632401,-3588.15038168,0.00020517,2]
[322287766,1712934632417,-829.53450096,0.00020517,2]
[322287767,1712934632569,-18682.4201672,0.00020517,2]
[322287768,1712934632581,-384.64907731,0.00020518,2]
[322287769,1712934632592,-939.0,0.00020559,2]
[322287770,1712934632603,-150.0,0.00020568,2]
[322287771,1712934632614,-19406.79745838,0.0002057,2]
[322287772,1712934632624,-312.01474417,0.00020628,2]
[322287773,1712934632635,-155.7,0.0002066,2]
[322287774,1712934632646,-3728.53241994,0.00020707,2]
[322287775,1712934632657,-25532.43613302,0.00020707,2]
[322287776,1712934632672,-2113.41622537,0.00020707,2]
[322287777,1712934632683,-668.80777463,0.00020713,2]
[322287803,1712934637647,-312.9044161,0.00020511,2]
[322287805,1712934637658,-2351.56165976,0.00020512,2]
[322287807,1712934637670,-5094.36006036,0.00020713,2]
[322287886,1712934639074,-63.20531098,0.00020713,2]
[322287887,1712934639083,-510.2799012,0.00020715,2]
[322287888,1712934639093,-169.43646639,0.00020715,2]
[322287891,1712934639103,-510.2799012,0.00020715,2]
[322287892,1712934639115,-510.2799012,0.00020715,2]
[322287894,1712934639126,-510.2799012,0.00020715,2]
[322287896,1712934639135,-510.2799012,0.00020715,2]
[322287898,1712934639145,-510.2799012,0.00020715,2]
[322287901,1712934639154,-510.2799012,0.00020715,2]
[322287903,1712934639165,-510.2799012,0.00020715,2]
[322287905,1712934639174,-510.2799012,0.00020715,2]
[322287907,1712934639183,-510.2799012,0.00020715,2]
[322287909,1712934639193,-510.2799012,0.00020715,2]
[322287911,1712934639204,-122.72807531,0.00020715,2]
[322287913,1712934639216,-387.55182589,0.00020715,2]
[322287915,1712934639225,-11.4475541,0.00020715,2]
[322287917,1712934639237,-498.8323471,0.00020715,2]
[322287919,1712934639246,-510.2799012,0.00020715,2]
[322287921,1712934639255,-510.2799012,0.00020715,2]
[322287923,1712934639264,-510.2799012,0.00020715,2]
[322287925,1712934639273,-510.2799012,0.00020715,2]
[322287927,1712934639282,-510.2799012,0.00020715,2]
[322287929,1712934639292,-510.2799012,0.00020715,2]
[322287931,1712934639301,-510.2799012,0.00020715,2]
[322287933,1712934639311,-510.2799012,0.00020715,2]
[322287935,1712934639320,-510.2799012,0.00020715,2]
[322287937,1712934639329,-510.2799012,0.00020715,2]
[322287939,1712934639338,-510.2799012,0.00020715,2]
[322287941,1712934639347,-510.2799012,0.00020715,2]
[322287943,1712934639356,-510.2799012,0.00020715,2]
[322287945,1712934639365,-510.2799012,0.00020715,2]
[322287947,1712934639374,-510.2799012,0.00020715,2]
[322287949,1712934639384,-510.2799012,0.00020715,2]
[322287951,1712934639393,-510.2799012,0.00020715,2]
[322287953,1712934639402,-312.01474417,0.00020719,2]
[322287956,1712934639412,-310.0,0.00020724,2]
[322287958,1712934639421,-7447.00577649,0.00020725,2]
[322287960,1712934639433,-277.56,0.00020725,2]
[322287963,1712934639445,-810.16573838,0.00020725,2]
[322287965,1712934639457,-514.97098117,0.00020725,2]
[322287968,1712934639470,-400.0,0.00020725,2]
[322287971,1712934639482,-11432.2072065,0.00020725,2]
[322287973,1712934639494,-271.64,0.00020725,2]
[322287978,1712934639521,-524169.21721845,0.00020725,2]
[322287980,1712934639531,-23985.55231227,0.00020726,2]
[322287982,1712934639541,-27645.85235831,0.00020728,2]
[322287984,1712934639550,-5826.37314592,0.00020734,2]
[322287986,1712934639560,-3728.53241992,0.00020735,2]
[322287988,1712934639570,-27645.85235831,0.0002075,2]
[322287990,1712934639580,-5826.37314592,0.00020755,2]
[322287992,1712934639590,-3728.53241992,0.00020762,2]
[322287994,1712934639599,-27645.85235831,0.00020771,2]
[322287996,1712934639608,-5826.37314592,0.00020775,2]
[322287998,1712934639617,-150.23287209,0.00020777,2]
[322288001,1712934639627,-150.23287187,0.0002078,2]
[322288003,1712934639637,-150.23287187,0.00020782,2]
[322288006,1712934639647,-158.21681152,0.00020783,2]
[322288008,1712934639656,-150.23287187,0.00020785,2]
[322288010,1712934639665,-150.23287187,0.00020788,2]
[322288012,1712934639675,-3728.53241992,0.0002079,2]
[322288014,1712934639684,-150.23287187,0.00020791,2]
[322288016,1712934639694,-27645.85235831,0.00020793,2]
[322288018,1712934639703,-150.23287187,0.00020793,2]
[322288020,1712934639714,-5826.37314592,0.00020796,2]
[322288022,1712934639723,-150.23287187,0.00020796,2]
[322288024,1712934639733,-17254.23156301,0.00020798,2]
[322288026,1712934639742,-171.03858627,0.00020798,2]
[322288028,1712934639751,-150.23287187,0.00020799,2]
[322288030,1712934639761,-421.78243646,0.000208,2]
[322288032,1712934639771,-150.23287187,0.00020802,2]
[322288034,1712934639780,-150.23287187,0.00020804,2]
[322288036,1712934639791,-438.44360699,0.00020805,2]
[322288038,1712934639801,-150.23287187,0.00020807,2]
[322288040,1712934639811,-17254.23156298,0.00020807,2]
[322288042,1712934639820,-312.01474417,0.00020809,2]
[322288044,1712934639830,-150.23287187,0.0002081,2]
[322288047,1712934639839,-158.21681151,0.00020812,2]
[322288049,1712934639849,-150.23287187,0.00020813,2]
[322288051,1712934639858,-27645.85235831,0.00020814,2]
[322288053,1712934639868,-150.23287187,0.00020815,2]
[322288055,1712934639878,-17254.23156298,0.00020817,2]
[322288057,1712934639888,-5826.37314592,0.00020817,2]
[322288059,1712934639897,-3728.53241992,0.00020817,2]
[322288061,1712934639907,-150.23287187,0.00020818,2]
[322288063,1712934639917,-150.23287187,0.00020821,2]
[322288065,1712934639926,-499.99,0.00020821,2]
[322288067,1712934639936,-150.23287187,0.00020823,2]
[322288069,1712934639946,-17254.23156298,0.00020826,2]
[322288071,1712934639955,-150.23287187,0.00020826,2]
[322288072,1712934639965,-150.23287187,0.00020829,2]
[322288075,1712934639974,-150.23287187,0.00020832,2]
[322288077,1712934639983,-421.78243646,0.00020833,2]
[322288079,1712934639993,-155.7,0.00020833,2]
[322288081,1712934640002,-150.23287187,0.00020834,2]
[322288083,1712934640012,-17254.23156298,0.00020835,2]
[322288084,1712934640022,-27645.85235831,0.00020836,2]
[322288085,1712934640031,-150.23287187,0.00020837,2]
[322288086,1712934640041,-5826.37314592,0.00020838,2]
[322288088,1712934640051,-150.23287187,0.0002084,2]
[322288089,1712934640060,-158.21681151,0.00020842,2]
[322288090,1712934640069,-150.23287187,0.00020843,2]
[322288092,1712934640078,-17254.23156298,0.00020844,2]
[322288093,1712934640088,-3728.53241992,0.00020845,2]
[322288094,1712934640098,-150.23287187,0.00020845,2]
[322288095,1712934640108,-150.23287187,0.00020848,2]
[322288096,1712934640118,-150.23287187,0.00020851,2]
[322288097,1712934640132,-150.23287187,0.00020854,2]
[322288098,1712934640142,-17254.23156298,0.00020854,2]
[322288099,1712934640151,-150.23287187,0.00020856,2]
[322288101,1712934640161,-27645.85235831,0.00020857,2]
[322288102,1712934640173,-5826.37314592,0.00020858,2]
[322288103,1712934640182,-150.23287187,0.00020859,2]
[322288104,1712934640192,-150.23287187,0.00020862,2]
[322288105,1712934640204,-17254.23156298,0.00020863,2]
[322288107,1712934640219,-150.23287187,0.00020864,2]
[322288108,1712934640229,-5800.0,0.00020866,2]
[322288110,1712934640238,-421.78243646,0.00020867,2]
[322288111,1712934640248,-150.23287187,0.00020867,2]
[322288112,1712934640258,-150.23287187,0.0002087,2]
[322288113,1712934640267,-158.21681151,0.00020871,2]
[322288114,1712934640277,-17254.23156298,0.00020872,2]
[322288115,1712934640287,-3728.53241992,0.00020872,2]
[322288116,1712934640297,-150.23287187,0.00020873,2]
[322288117,1712934640307,-5800.0,0.00020875,2]
[322288118,1712934640317,-150.23287187,0.00020875,2]
[322288119,1712934640327,-150.23287187,0.00020878,2]
[322288120,1712934640337,-27645.85235831,0.00020879,2]
[322288121,1712934640348,-5826.37314592,0.00020879,2]
[322288122,1712934640357,-150.23287187,0.00020881,2]
[322288123,1712934640367,-17254.23156298,0.00020881,2]
[322288124,1712934640377,-5800.0,0.00020883,2]
[322288125,1712934640387,-150.23287187,0.00020884,2]
[322288126,1712934640396,-150.23287187,0.00020886,2]
[322288127,1712934640406,-150.23287187,0.00020889,2]
[322288128,1712934640415,-17254.23156298,0.00020891,2]
[322288129,1712934640425,-5800.0,0.00020892,2]
[322288130,1712934640434,-150.23287187,0.00020892,2]
[322288131,1712934640444,-150.23287187,0.00020895,2]
[322288132,1712934640454,-3350.06285352,0.00020895,2]
[322288133,1712934640465,-6209.85493494,0.00020895,2]
[322288134,1712934640474,-325.04470529,0.00020895,2]
[322288135,1712934640484,-1506.5199876,0.00020895,2]
[322288136,1712934640494,-858.2769229,0.00020896,2]
[322288137,1712934640503,-1964.09572452,0.00020897,2]
[322288138,1712934640514,-155.57055389,0.00020897,2]
[322288139,1712934640524,-277.4332682,0.00020897,2]
[322288140,1712934640533,-266.89870973,0.00020897,2]
[322288141,1712934640543,-158.07811083,0.00020897,3]
[322288142,1712934640552,-1633.068682,0.00020897,2]
[322288143,1712934640562,-226.12853944,0.00020897,2]
[322288144,1712934640572,-192.33950163,0.00020897,2]
[322288145,1712934640583,-1758.64547839,0.00020897,2]
[322288146,1712934640593,-155.59271232,0.00020897,2]
[322288147,1712934640604,-166.37762471,0.00020897,2]
[322288148,1712934640614,-1887.02421873,0.00020897,2]
[322288149,1712934640623,-255.3375802,0.00020897,2]
[322288150,1712934640633,-155.0,0.00020897,2]
[322288151,1712934640643,-1481.69653304,0.00020897,2]
[322288152,1712934640652,-150.23287187,0.00020897,2]
[322288153,1712934640662,-31764.40679648,0.00020898,2]
[322288154,1712934640672,-377900.68232381,0.00020898,2]
[322288155,1712934640681,-2211.61171423,0.00020898,2]
[322288156,1712934640692,-5940.24861149,0.00020899,2]
[322288157,1712934640702,-156.31767982,0.00020899,3]
[322288158,1712934640713,-1508.73513278,0.00020899,2]
[322288159,1712934640723,-5940.24861147,0.000209,2]
[322288160,1712934640732,-156.3176798,0.000209,3]
[322288161,1712934640742,-17254.23156298,0.000209,2]
[322288162,1712934640752,-421.78243646,0.000209,2]
[322288163,1712934640761,-150.23287187,0.000209,2]
[322288164,1712934640771,-5800.0,0.000209,2]
[322288165,1712934640781,-5826.37314592,0.000209,2]
[322288166,1712934640791,-3728.53241992,0.000209,2]
[322288167,1712934640801,-27645.85235831,0.000209,2]
[322288168,1712934640811,-158.21681151,0.000209,2]
[322288169,1712934640820,-312.01474417,0.000209,2]
[322288170,1712934640830,-5940.24861147,0.000209,2]
[322288171,1712934640840,-156.3176798,0.000209,3]
[322288172,1712934640851,-3849.67226832,0.000209,3]
[322288173,1712934640861,-174.65935058,0.000209,2]
[322288174,1712934640871,-160010.0,0.00020986,2]
[322288175,1712934640881,-2555.0,0.00020986,2]
[322288176,1712934640891,-22102.0,0.00020986,2]
[322288177,1712934640901,-366.64555523,0.00020999,2]
[322288178,1712934640914,-389.80091649,0.00020999,2]
[322288179,1712934640923,-233.88054989,0.00020999,2]
[322288180,1712934640933,-155.9203666,0.00020999,2]
[322288181,1712934640943,-1009498.07539905,0.00020999,2]
[322288182,1712934640954,-427.31832369,0.00020999,2]
[322288183,1712934640964,-500.0,0.00020999,2]
[322288184,1712934640974,-186.25399525,0.00020999,2]
[322288185,1712934640984,-500.0,0.00020999,2]
[322288186,1712934640994,-500.0,0.00020999,2]
[322288187,1712934641004,-500.0,0.00020999,2]
[322288188,1712934641014,-13471377.28184991,0.00021,2]
[322288189,1712934641030,-14943875.11559922,0.00021,2]
[322288190,1712934641040,-1449.35234519,0.00021,2]
[322288191,1712934641049,-516562.30346389,0.00021,2]
[322288192,1712934641062,-1314362.23972569,0.00021,2]
[322288193,1712934641073,-250.0,0.00021,3]
[322288194,1712934641083,-2209.24532718,0.00021,2]
[322288195,1712934641093,-434.31874735,0.00021,2]
[322288196,1712934641103,-329.63,0.00021,2]
[322288197,1712934641112,-415.09,0.00021,2]
[322288198,1712934641126,-155.7,0.00021007,2]
[322288199,1712934641137,-231.34,0.00021163,2]
[322288200,1712934641146,-294.76,0.00021651,2]
[322288201,1712934641156,-250.0,0.00021918,2]
[322288202,1712934641165,-172.07,0.00021994,2]
[322288203,1712934641175,-502.0,0.000222,2]
[322288204,1712934641184,-200.0,0.00022267,2]
[322288205,1712934641194,-1504.0,0.000223,2]
[322288206,1712934641205,-167.1,0.000223,2]
[322288207,1712934641218,-1000.0,0.00022356,2]
[322288208,1712934641227,-232.88,0.00022399,2]
[322288209,1712934641237,-538.33,0.00022533,2]
[322288210,1712934641247,-300.0,0.00023,3]
[322288211,1712934641256,-232.88,0.00024663,2]
[322288212,1712934641266,-200.0,0.00024742,2]
[322288213,1712934641276,-1000.0,0.00024841,2]
[322288214,1712934641285,-162.82191657,0.00025,2]
[322288215,1712934641295,-350.0,0.00025,3]
[322288216,1712934641305,-2604.28990565,0.00025,2]
[322288217,1712934641315,-106996.50934582,0.00025,2]
[322288218,1712934641325,-562.74532621,0.00025,2]
[322288219,1712934641334,-538.33,0.00025273,2]
[322288220,1712934641345,-172.07,0.00026662,2]
[322288221,1712934641354,-232.88,0.00026927,2]
[322288222,1712934641364,-749.70814015,0.00027,2]
[322288223,1712934641374,-400.0,0.00027,3]
[322288224,1712934641385,-219.25888395,0.00027,2]
[322288225,1712934641395,-853.82148832,0.00027,2]
[322288226,1712934641404,-551.210041,0.000272,2]
[322288227,1712934641414,-826.815062,0.000272,2]
[322288228,1712934641424,-1102.420083,0.000272,2]
[322288229,1712934641434,-1378.025104,0.000272,2]
[322288230,1712934641444,-1929.235146,0.000272,2]
[322288231,1712934641454,-200.0,0.00027216,2]
[322288232,1712934641469,-1000.0,0.00027325,2]
[322288233,1712934641481,-346166.72028313,0.0002738,2]
[322288234,1712934641494,-745.13732353,0.0002738,2]
[322288235,1712934641507,-689.35729173,0.0002738,2]
[322288236,1712934641519,-3027.77783426,0.0002738,2]
[322288237,1712934641531,-2199.22889,0.0002738,2]
[322288238,1712934641544,-795.2682055,0.0002738,2]
[322288239,1712934641556,-1007.38297438,0.0002738,2]
[322288240,1712934641569,-1009.68225184,0.0002738,2]
[322288241,1712934641582,-3412.92618135,0.0002738,2]
[322288242,1712934641595,-230209.08267649,0.0002738,2]
[322288243,1712934641608,-1041.377816,0.0002738,2]
[322288244,1712934641621,-344.49999999,0.0002738,2]
[322288245,1712934641633,-1937.22604269,0.0002738,2]
[322288246,1712934641645,-534.16483511,0.0002738,2]
[322288247,1712934641657,-11696.38000743,0.0002738,2]
[322288248,1712934641670,-1139.58268821,0.0002738,2]
[322288249,1712934641682,-648.5229323,0.0002738,2]
[322288250,1712934641959,-260.63380365,0.00020899,2]
[322288251,1712934641970,-235.82666035,0.00020899,2]
[322288252,1712934641981,-1605.82348593,0.0002738,2]
[322288253,1712934641999,-406.44,0.0002738,2]
[322288254,1712934642012,-1068.68132739,0.0002738,2]
[322288255,1712934642222,-20815.40000002,0.0002738,2]
[322288256,1712934642239,-345.0,0.0002738,2]
[322288257,1712934642251,-449.00365327,0.0002738,2]
[322288258,1712934642263,-3487.15162702,0.0002738,2]
[322288259,1712934642275,-313.8892513,0.0002738,2]
[322288260,1712934642287,-6940.60000001,0.0002738,2]
[322288272,1712934642808,-439.50493443,0.00020899,2]
[322288273,1712934642822,-5528.76381083,0.00020899,2]
[322288274,1712934642833,-1508.73513278,0.000209,2]
[322288275,1712934642844,-62357.73173565,0.0002738,2]
[322288276,1712934642858,-6930.28578,0.0002738,2]
[322288277,1712934642870,-189705.90865902,0.0002738,2]
[322288278,1712934642919,-1199.995405,0.0002738,2]
[322288279,1712934642934,-5099.07571389,0.0002738,2]
[322288280,1712934643045,-3856.63086408,0.0002738,2]
[322288281,1712934643103,-10483.452,0.0002738,2]
[322288282,1712934643117,-1457.9802636,0.0002738,2]
[322288283,1712934643130,-693.02298876,0.0002738,2]
[322288284,1712934643167,-3746.76742505,0.0002738,2]
[322288338,1712934645824,-214.26089014,0.0002089,2]
[322288340,1712934645837,-224.19047178,0.0002089,2]
[322288342,1712934645846,-260.63380364,0.000209,2]
[322288344,1712934645856,-235.82666033,0.000209,2]
[322288346,1712934645866,-5968.26874526,0.000209,2]
[322288348,1712934645876,-1508.73513278,0.000209,2]
[322288350,1712934645885,-61254.11514089,0.0002738,2]
[322288353,1712934645898,-18197.91739653,0.0002738,2]
[322288356,1712934645922,-884.75762765,0.0002738,2]
[322288359,1712934645939,-180576.85853416,0.0002738,2]
[322288392,1712934649607,1371.96011043,0.000205,3]
[322288397,1712934759131,8927.709,0.00020462,2]
[322288398,1712934960913,-200.0,0.000326,20]
[322288399,1712935000343,-241.70411113,0.000326,20]
[322288400,1712935000365,-150.0,0.00032877,30]
[322288401,1712935000386,-175.73626305,0.00032877,30]
[322288402,1712935082981,-415.29992,0.00024995,10]
[322288403,1712935083004,-275.946715,0.00028219,14]
[322288404,1712935083028,-275.946715,0.00029041,14]
[322288405,1712935083050,-275.946715,0.00029863,14]
[322288406,1712935083069,-275.946715,0.00030685,14]
[322288407,1712935083091,-275.946715,0.00031507,14]
[322288408,1712935083117,-204.966505,0.00035288,15]
[322288409,1712935114272,-68.853495,0.00035288,15]
[322288410,1712935176241,256.7,0.00035288,15]
[322288412,1712935197194,294.76,0.00025027,120]
[322288415,1712935266821,19379.686505,0.00037,10]
[322288466,1712935831875,-151.61319479,0.000207,2]
[322288468,1712935831885,-955.32487035,0.00020999,2]
[322288470,1712935831895,-250.0,0.00021,3]
[322288472,1712935831905,-46.23499486,0.0002159,2]
[322288476,1712935831932,-23268.10085302,0.0002159,2]
[322288478,1712935831942,-1000.0,0.00021591,2]
[322288479,1712935831952,-39974.5807,0.00021591,2]
[322288480,1712935831962,-7500.0,0.00021591,2]
[322288481,1712935831975,-305.43574095,0.00021594,2]
[322288482,1712935831986,-185.54198543,0.00021594,2]
[322288483,1712935831996,-151.78854707,0.00021594,2]
[322288484,1712935832005,-1632.34922839,0.00021594,2]
[322288485,1712935832015,-274.06889304,0.00021594,2]
[322288486,1712935832024,-157.72856215,0.00021594,2]
[322288487,1712935832033,-795.29,0.00021681,3]
[322288488,1712935832043,-171.08,0.00021681,2]
[322288489,1712935832052,-499.99,0.00021681,2]
[322288490,1712935832063,-415.29992,0.0002169,5]
[322288491,1712935832072,-192.36220435,0.0002169,2]
[322288492,1712935832083,-150.99,0.0002169,2]
[322288493,1712935832093,-164377.49749461,0.00021691,2]
[322288494,1712935832105,-1819.041,0.00021691,2]
[322288495,1712935832117,-1250.0,0.00021691,2]
[322288496,1712935832129,-992.20663566,0.00021691,2]
[322288497,1712935832345,-880.49190557,0.00021691,2]
[322288498,1712935832362,-15531.22136233,0.00021691,2]
[322288499,1712935832386,-3645.27648316,0.00021691,2]
[322288500,1712935832405,-1657.73331184,0.00021691,2]
[322288501,1712935832416,-4048.71369753,0.00021691,2]
[322288502,1712935832427,-1649.53619494,0.00021691,2]
[322288503,1712935832443,-1016.27333657,0.00021691,2]
[322288504,1712935832454,-348.29460679,0.00021691,2]
[322288505,1712935832467,-415.0332633,0.00021691,2]
[322288510,1712935837847,-9751.13517147,0.00021691,2]
[322288541,1712935838520,-71764.65492269,0.00021691,2]
[322288546,1712935838537,-2338.21148539,0.00021691,2]
[322288549,1712935838549,-13928.57393758,0.00021691,2]
[322288551,1712935838562,-27062.37402649,0.00021691,2]
[322288554,1712935838574,-477616.20480033,0.00021691,2]
[322288556,1712935838586,-15350.0,0.00021691,2]
[322288647,1712935839951,-888.61898257,0.00021691,2]
[322288648,1712935839963,-1819.67187451,0.00021691,2]
[322288649,1712935839980,-921.48470114,0.00021691,2]
[322288650,1712935840064,-1741.73002826,0.00021691,2]
[322288651,1712935840178,-2032.2,0.00021691,2]
[322288652,1712935840236,-1389.23997941,0.00021691,2]
[322288653,1712935840294,-7152.1,0.00021691,2]
[322288673,1712935843046,-7500.0,0.00021591,2]
[322288674,1712935843056,-89985.97620566,0.00021691,2]
[322288675,1712935843070,-47590.98995589,0.00021691,2]
[322288676,1712935843108,-6314.04752689,0.00021691,2]
[322288677,1712935843223,-5447.44024957,0.00021691,2]
[322288678,1712935843235,-8901.73336,0.00021691,2]
[322288679,1712935843335,-357.37,0.00021691,2]
[322288680,1712935843393,-2244.99894592,0.00021691,2]
[322288681,1712935843405,-1025.1000001,0.00021691,2]
[322288726,1712935846054,-4524.69520473,0.00021691,2]
[322288739,1712935846222,-5083.01515017,0.00021691,2]
[322288742,1712935846234,-512.73225926,0.00021691,2]
[322288748,1712935846283,-10263.81397446,0.00021691,2]
[322288754,1712935846608,-34691.87299903,0.00021691,2]
[322288755,1712935846622,-68582.0,0.00021691,2]
[322288757,1712936070873,441.53358594,0.000205,2]
[322288758,1712936391488,267.07,0.00019743,2]
[322288760,1712936691806,536.72263243,0.000205,2]
[322288761,1712936739238,1254.8389125,0.00021057,5]
[322288762,1712936791560,289.24,0.00020493,2]
[322288763,1712936800756,531.41244433,0.000205,2]
[322288764,1712936809610,19406.79745838,0.000205,2]
[322288765,1712936847131,-353.14913346,0.00020501,2]
[322288766,1712936847152,-157.92490406,0.00020502,2]
[322288767,1712936847173,-774.62,0.00020523,2]
[322288768,1712936847195,-1817.26979865,0.00020604,2]
[322288769,1712936847215,-1075.83,0.00020689,2]
[322288770,1712936847236,-3495.14,0.00020775,2]
[322288771,1712936847259,-150.0,0.00020957,2]
[322288772,1712936847281,-150.0,0.00020957,2]
[322288773,1712936847302,-1000.0,0.00020958,2]
[322288774,1712936847324,-1875.8252,0.00020958,2]
[322288775,1712936847346,-1393.3336,0.00020958,2]
[322288776,1712936847369,-9496.0142,0.00020958,2]
[322288777,1712936847391,-1469.11430556,0.00020959,2]
[322288778,1712936847412,-185.54198541,0.00020959,2]
[322288779,1712936847434,-684.67395757,0.00020959,2]
[322288780,1712936847454,-304.52328988,0.00020959,2]
[322288781,1712936847476,-279.98276251,0.00020959,2]
[322288782,1712936847498,-250.0,0.00021,3]
[322288789,1712936864170,261.4,0.00019031,2]
[322288792,1712936907882,246.22571989,0.00020003,2]
[322288793,1712937026433,960.0,0.00020398,2]
[322288810,1712937032991,-441.53358594,0.00020542,2]
[322288811,1712937033001,-353.14913346,0.00020543,2]
[322288812,1712937033011,-386.58996955,0.00020544,2]
[322288813,1712937033020,-279.94,0.00020546,2]
[322288814,1712937033030,-160.17,0.00020627,2]
[322288815,1712937033039,-4923.9226,0.00020958,2]
[322288816,1712937033048,-309.2166,0.00020958,2]
[322288817,1712937033058,-168.01019119,0.00020959,2]
[322288818,1712937033067,-1322.20287495,0.00020959,2]
[322288819,1712937033077,-192.53200816,0.00021,2]
[322288820,1712937033086,-171.08,0.00021048,2]
[322288821,1712937033095,-499.99,0.00021048,2]
[322288822,1712937033105,-206.00107044,0.00021056,2]
[322288823,1712937033114,-640.46092048,0.00021056,2]
[322288824,1712937033124,-447.23282103,0.00021056,2]
[322288825,1712937033133,-1786.75879772,0.00021056,2]
[322288826,1712937033144,-164.17733306,0.00021056,2]
[322288827,1712937033153,-362.49031828,0.00021056,2]
[322288828,1712937033162,-2209.58886426,0.00021057,2]
[322288829,1712937033171,-20887.23723281,0.00021058,2]
[322288830,1712937033190,-354.21098078,0.00021058,2]
[322288831,1712937033201,-469.29674785,0.00021058,2]
[322288832,1712937033213,-432.38722525,0.00021058,2]
[322288833,1712937033225,-4869.44888143,0.00021058,2]
[322288834,1712937033241,-1064.07063582,0.00021058,2]
[322288835,1712937033253,-25618.53189687,0.00021058,2]
[322288836,1712937033265,-2102.23572168,0.00021058,2]
[322288837,1712937033283,-262.96,0.00021058,2]
[322288838,1712937033298,-314.42749356,0.00021058,2]
[322288934,1712937038165,-2453.07925518,0.00021058,2]
[322288935,1712937038507,-651.59,0.00021058,2]
[322288937,1712937038520,-1340.01178555,0.00021058,2]
[322288938,1712937038533,-72346.25863503,0.00021058,2]
[322288939,1712937038544,-4971.76781147,0.00021058,2]
[322288940,1712937038556,-6959.17520887,0.00021058,2]
[322288941,1712937038567,-990.89003701,0.00021058,2]
[322288942,1712937038578,-313.27,0.00021058,2]
[322288943,1712937038589,-7161.09999999,0.00021058,2]
[322288944,1712937039089,-820.17749397,0.00021058,2]
[322288945,1712937039101,-4480.48753922,0.00021058,2]
[322288947,1712937039113,-519.14299878,0.00021058,2]
[322288949,1712937039125,-262.65011809,0.00021058,2]
[322288951,1712937039137,-2104.27401744,0.00021058,2]
[322288953,1712937039147,-22038.540921,0.00021058,2]
[322288956,1712937039159,-16537.02725252,0.00021058,2]
[322288958,1712937039171,-477616.20480033,0.00021058,2]
[322289066,1712937040262,-1393.60164,0.00021058,2]
[322289074,1712937040321,-5439.05225535,0.00021058,2]
[322289081,1712937040380,-3464.51519998,0.00021058,2]
[322289317,1712937043190,-266688.13907975,0.00021058,2]
[322289318,1712937043206,-9520.83468411,0.00021058,2]
[322289319,1712937043302,-3891.02472958,0.00021058,2]
[322289320,1712937043414,-7195.25160001,0.00021058,2]
[322289321,1712937043473,-3327.87149677,0.00021058,2]
[322289322,1712937043487,-24856.290398,0.00021058,2]
[322289353,1712937046167,-353.14913346,0.00021057,2]
[322289354,1712937046177,-520733.66842418,0.00021058,2]
[322289355,1712937046187,-500.0,0.00021059,2]